Cogmind - Beta 13 @@@ ROGUE MODE // 2024.04.04 @ 04:33:58 Player: 81fm Result: Destroyed by S-27 Virus with Autogun Performance ------------- Evolutions (1) 500 Regions Visited (5) 1000 Robots Destroyed (11) 55 Value Destroyed (328) 328 Prototype IDs (1) 20 Alien Tech Used (0) 0 Bonus (200) 200 TOTAL SCORE: 2103 Bonus ------- Pacifist 200 Cogmind --------- Core Integrity 0/400 Matter 291/300 Energy 99/100 System Corruption 0% Temperature Cool (2) Movement Flying (35) Location -6/Proximity Caves Parts ------- > --- POWER (1) -------- (None) > --- PROPULSION (3) --- VTOL Module > --- UTILITY (3) ------ (None) > --- WEAPON (2) ------- (None) > --- INVENTORY (5) ---- (None) Peak State ------------ > --- POWER ------------ (None) > --- PROPULSION ------- Flight Unit > --- UTILITY ---------- Heat Sink Makeshift Hacking Suite Hacking Drone Bay > --- WEAPON ----------- Small Laser Small Laser > --- INVENTORY -------- Light Ion Engine Heat Sink Lightning Gun Small Laser Beam Rifle [Rating: 17] Favorites ----------- Power Light Ion Engine Engine Light Ion Engine Propulsion Hover Unit Wheel Compact Wheel Hover Unit Hover Unit Flight Unit Flight Unit Utility Heat Sink Device Heat Sink Hackware Makeshift Hacking Suite Weapon Small Laser Energy Gun Small Laser Ballistic Gun Light Assault Rifle Build | -11 -10 -9 -9 -7 -6 ------- Run | Yrd Mat Mat Min Zio Pro Slots Evolved 2 | . . 2 . . . Power . | . . . . . . Propulsion 1 | . . 1 . . . Utility 1 | . . 1 . . . Weapon . | . . . . . . Parts Attached 22 | 5 1 1 4 6 5 Power 2 | 1 . . . . 1 Engine 2 | 1 . . . . 1 Core . | . . . . . . Reactor . | . . . . . . Propulsion 6 | 2 1 1 1 . 1 Treads . | . . . . . . Leg . | . . . . . . Wheel 2 | 2 . . . . . Hover 2 | . 1 1 . . . Flight 2 | . . . 1 . 1 Utility 5 | . . . 2 3 . Device 4 | . . . 2 2 . Storage . | . . . . . . Processor . | . . . . . . Hackware 1 | . . . . 1 . Protection . | . . . . . . Artifact . | . . . . . . Weapon 9 | 2 . . 1 3 3 Energy Gun 8 | 1 . . 1 3 3 Energy Cannon . | . . . . . . Ballistic Gun 1 | 1 . . . . . Ballistic Cannon . | . . . . . . Launcher . | . . . . . . Special Weapon . | . . . . . . Impact Weapon . | . . . . . . Slashing Weapon . | . . . . . . Piercing Weapon . | . . . . . . Special Melee Weapon . | . . . . . . Unidentified Prototypes 1 | . . . . 1 . Parts Lost 13 | . . . 3 . 10 Power 2 | . . . 1 . 1 Propulsion 3 | . . . 2 . 1 Utility 3 | . . . . . 3 Weapon 5 | . . . . . 5 Highest Loss Streak 7 | . . . 3 . 7 To Critical Strikes . | . . . . . . Average Slot Usage (%) 51 | . 58 49 55 64 37 Engine 5 | . 14 11 3 . 5 Hover 4 | . 8 16 4 . . Flight 5 | . . . 5 11 8 Device 13 | . . . 19 22 10 Hackware 1 | . . . . 9 1 Energy Gun 16 | . 14 11 20 22 11 Ballistic Gun 3 | . 14 11 1 . . Naked Turns . | . . . . . . Heaviest Build 9 | 5 5 5 7 7 9 Greatest Support 32 | 32 32 12 12 4 4 Greatest Overweight (x) 2 | . . . 2 1 2 Average Overweight (x) . | . . . . . . Largest Inventory Capacity 5 | 5 5 5 5 5 5 Average Capacity 5 | 5 5 5 5 5 5 Most Carried 5 | 2 1 1 3 5 4 Average Carried 1 | . . . 1 3 . Final Capacity 5 | 5 5 5 5 5 5 Final Carried 4 | . . . 3 4 . Class Distribution -------------------- 71% | Mutant 28% | Scavenger-Mutant Dominant Class ---------------- Mutant | -10/Materials Mutant | -9/Materials Scavenger-Mutant | -9/Mines Scavenger-Mutant | -7/Zion Mutant | -6/Proximity Caves Resources | -11 -10 -9 -9 -7 -6 ----------- Run | Yrd Mat Mat Min Zio Pro Matter Collected 361 | 178 . 96 36 . 51 Remotely . | . . . . . . Salvage Created 380 | . . 26 261 . 93 Parts 24 | . . 2 12 . 10 Haulers Intercepted . | . . . . . . Recyclers Shooed . | . . . . . . Parts Field Recycled . | . . . . . . Retrieved Matter . | . . . . . . Parts Self-Destructed 9 | . . . . . 9 Prevented 2 | . . . . . 2 Kills | -11 -10 -9 -9 -7 -6 ------- Run | Yrd Mat Mat Min Zio Pro Combat Hostiles Destroyed 10 | . . . 6 . 4 Guns 9 | . . . 6 . 3 AOE 1 | . . . . . 1 Classes Destroyed 4 | . . 1 3 . . Watcher 1 | . . 1 . . . Swarmer 5 | . . . 1 . 4 Grunt 4 | . . . 4 . . Sentry 1 | . . . 1 . . Best Kill Streak 2 | . . 1 2 . 2 Combat Bots Only 2 | . . . 2 . 2 Max Kills in Single Turn 1 | . . 1 1 . 1 Gunslinging . | . . . . . . Exploded 1 | . . . . . 1 Melee . | . . . . . . Uniques/NPCs Destroyed . | . . . . . . Combat | -11 -10 -9 -9 -7 -6 -------- Run | Yrd Mat Mat Min Zio Pro Hostile Shots Fired 108 | . . . 37 . 71 Missed 37 | . . . 9 . 28 Damage Taken 1000 | . . . 337 . 663 Core 416 | . . . 108 . 308 Absorbed by Shields . | . . . . . . Core Remaining (%) 100 | 100 100 . . . . Volleys Fired 46 | . . 4 25 6 11 Largest 2 | . . 2 2 2 2 Hottest 96 | . . 60 80 96 96 Shots Fired 88 | . . 8 50 12 18 Gun 88 | . . 8 50 12 18 Cannon . | . . . . . . Launcher . | . . . . . . Special . | . . . . . . Kinetic 10 | . . 4 6 . . Thermal 75 | . . 4 44 11 16 Explosive . | . . . . . . Electromagnetic 3 | . . . . 1 2 Robot Hit Streak 11 | . . 1 11 . 7 Robot Miss Streak 2 | . . 2 2 . 2 Penetration Max . | . . . . . . Secondary Targets 1 | . . . . . 1 Max Gunslinging Chain 1 | . . . . . 1 Shots Hit Robots 53 | . . 3 38 . 12 Core Hits 22 | . . 2 12 . 8 Critical Kills . | . . . . . . Critical Parts Destroyed . | . . . . . . Critical Strikes . | . . . . . . Melee Attacks . | . . . . . . Impact . | . . . . . . Slashing . | . . . . . . Piercing . | . . . . . . Sneak Attacks . | . . . . . . Combat Hostiles . | . . . . . . Follow-up Attacks . | . . . . . . Damage Inflicted 616 | . . 31 401 . 184 Guns 581 | . . 31 401 . 149 Cannons . | . . . . . . Explosions 35 | . . . . . 35 Melee . | . . . . . . Ramming . | . . . . . . Kinetic 58 | . . 19 39 . . Thermal 524 | . . 12 362 . 150 Explosive . | . . . . . . Electromagnetic 34 | . . . . . 34 Impact . | . . . . . . Slashing . | . . . . . . Piercing . | . . . . . . Highest Corruption . | . . . . . . Average Corruption . | . . . . . . Corruption Purged . | . . . . . . Corruption Blocked . | . . . . . . Overload Shots . | . . . . . . Overflow Damage . | . . . . . . Projectiles . | . . . . . . Explosions . | . . . . . . Melee . | . . . . . . Knockbacks . | . . . . . . Impact . | . . . . . . Kinetic . | . . . . . . Secondary . | . . . . . . Self-Inflicted Damage . | . . . . . . Shots . | . . . . . . Rammed . | . . . . . . Targets Rammed . | . . . . . . Kicked . | . . . . . . Crushed . | . . . . . . Highest Temperature 72 | . . 17 72 . . Average Temperature 33 | . . 12 42 . . Received Heat Transfer 249 | . . . 204 . 45 Siege Activations . | . . . . . . Robots Corrupted . | . . . . . . Combat Hostiles . | . . . . . . Parts Fried . | . . . . . . Impact Corruptions . | . . . . . . Robots Melted . | . . . . . . Combat Hostiles . | . . . . . . Parts Melted 3 | . . . 2 . 1 Heat Transferred 1174 | . . 25 825 . 324 Parts Sabotaged . | . . . . . . Parts Stolen . | . . . . . . Parts Stripped . | . . . . . . Power Chain Reactions 1 | . . . . . 1 Alert | -11 -10 -9 -9 -7 -6 ------- Run | Yrd Mat Mat Min Zio Pro Peak Influence 160 | . 20 30 160 . . Initial 8 | . . 8 . . . Average 67 | . 9 14 110 . . Maximum Alert Level . | . . . . . . Low Security (%) 100 | 100 100 100 100 . . Level 1 . | . . . . . . Level 2 . | . . . . . . Level 3 . | . . . . . . Level 4 . | . . . . . . Level 5 . | . . . . . . High Security . | . . . . . . Max Security . | . . . . . . Squads Dispatched . | . . . . . . Investigation . | . . . . . . Extermination . | . . . . . . Reinforcement . | . . . . . . Assault . | . . . . . . Garrison . | . . . . . . Intercept . | . . . . . . Searches Triggered . | . . . . . . Construction Impeded . | . . . . . . Haulers Reinforced . | . . . . . . Active Scanning Responses . | . . . . . . Cargo Convoy Interrupts . | . . . . . . Stealth | -11 -10 -9 -9 -7 -6 --------- Run | Yrd Mat Mat Min Zio Pro Distress Signals . | . . . . . . Communications Jammed . | . . . . . . Distress Signals . | . . . . . . Times Spotted 29 | . 1 1 10 . 17 Peak Tracking Total 10 | . 1 1 3 . 10 Tactical Retreats 2 | . . . 1 . 1 Traps | -11 -10 -9 -9 -7 -6 ------- Run | Yrd Mat Mat Min Zio Pro Traps Triggered . | . . . . . . Indirectly . | . . . . . . Trap Hack Attempts . | . . . . . . Triggered . | . . . . . . Disarmed . | . . . . . . Reprogrammed . | . . . . . . Reused . | . . . . . . Traps Extracted . | . . . . . . Installed . | . . . . . . Triggered 1 | . . . . . 1 Machines | -11 -10 -9 -9 -7 -6 ---------- Run | Yrd Mat Mat Min Zio Pro Machines Disabled . | . . . . . . Max in Single Turn . | . . . . . . Machines Repaired . | . . . . . . Machines Dismantled . | . . . . . . Machines Sabotaged . | . . . . . . Overloaded Fab Kills . | . . . . . . Hacking | -11 -10 -9 -9 -7 -6 --------- Run | Yrd Mat Mat Min Zio Pro Machines Accessed 4 | . 2 2 . . . Terminals 4 | . 2 2 . . . Fabricators . | . . . . . . Repair Stations . | . . . . . . Recycling Units . | . . . . . . Scanalyzers . | . . . . . . Garrison Access . | . . . . . . Total Hacks 12 | . 5 7 . . . Successful 5 | . 1 4 . . . Failed 7 | . 4 3 . . . Catastrophic . | . . . . . . Database Lockouts . | . . . . . . Manual . | . . . . . . Terminals 12 | . 5 7 . . . Fabricators . | . . . . . . Repair Stations . | . . . . . . Recycling Units . | . . . . . . Scanalyzers . | . . . . . . Garrison Access . | . . . . . . Terminal Hacks 5 | . 1 4 . . . Alert Level 2 | . . 2 . . . Unreport Threat 1 | . . 1 . . . Zone Layout 2 | . 1 1 . . . Fabricator Hacks . | . . . . . . Repair Station Hacks . | . . . . . . Recycling Unit Hacks . | . . . . . . Scanalyzer . | . . . . . . Garrison Access Hacks . | . . . . . . Unauthorized Hacks . | . . . . . . Terminals . | . . . . . . Fabricators . | . . . . . . Repair Stations . | . . . . . . Recycling Units . | . . . . . . Scanalyzers . | . . . . . . Garrison Access . | . . . . . . Data Cores Recovered . | . . . . . . Used . | . . . . . . Hacking Detections 4 | . 2 2 . . . Full Trace Events 1 | . 1 . . . . Feedback Events . | . . . . . . Feedback Blocked . | . . . . . . Robot Schematics Acquired 4 | . . . . 4 . Robots Built . | . . . . . . Authchips . | . . . . . . Time . | . . . . . . Total Robot Build Rating . | . . . . . . Part Schematics Acquired 15 | . . . . 15 . Parts Built . | . . . . . . Authchips . | . . . . . . Time . | . . . . . . Total Part Build Rating . | . . . . . . Parts Repaired . | . . . . . . Time . | . . . . . . Parts Recycled . | . . . . . . Recycled Matter . | . . . . . . Retrieved Matter . | . . . . . . Retrieved Components . | . . . . . . Parts Scanalyzed . | . . . . . . Part Schematics Acquired . | . . . . . . Parts Damaged . | . . . . . . Bothacking | -11 -10 -9 -9 -7 -6 ------------ Run | Yrd Mat Mat Min Zio Pro Used RIF Installer . | . . . . . . Robots Hacked . | . . . . . . Non-combat . | . . . . . . Combat . | . . . . . . Robot Hacks Applied . | . . . . . . Relay Couplers Released . | . . . . . . Fabnet Peak Effective % . | . . . . . . Robots Rewired . | . . . . . . Allies Hacked . | . . . . . . Hacks Repelled . | . . . . . . Allies | -11 -10 -9 -9 -7 -6 -------- Run | Yrd Mat Mat Min Zio Pro Total Allies . | . . . . . . Largest Group . | . . . . . . Highest-Rated Group . | . . . . . . Highest-Rated Ally . | . . . . . . Total Orders . | . . . . . . Ally Attacks . | . . . . . . Total Damage . | . . . . . . Kills . | . . . . . . Allies Corrupted . | . . . . . . Allies Melted . | . . . . . . Intel | -11 -10 -9 -9 -7 -6 ------- Run | Yrd Mat Mat Min Zio Pro Robot Analysis Total . | . . . . . . Derelict Logs Recovered 3 | . . . 3 . . Drone Launches . | . . . . . . Drone Recoveries . | . . . . . . Exploration | -11 -10 -9 -9 -7 -6 ------------- Run | Yrd Mat Mat Min Zio Pro Turns Passed 817 | 55 65 102 297 109 189 Spaces Moved 1100 | 48 89 139 442 145 237 Core 54 | 4 . . 37 . 13 Treads . | . . . . . . Legs . | . . . . . . Wheels 65 | 44 21 . . . . Hover 278 | . 68 139 71 . . Flight 703 | . . . 334 145 224 Fastest Speed 35 | 50 60 56 40 40 35 Average Speed 55 | 95 69 57 47 44 62 Slowest Speed 150 | 100 100 60 150 120 150 Overloaded Moves . | . . . . . . Propulsion Burnouts . | . . . . . . Robots Hopped 4 | . . . 3 . 1 Cave-ins Triggered . | . . . . . . Exploration Rate (%) 30 | 3 25 18 85 9 42 Regions Visited 5 Branch Regions 3 Pre-discovered Areas 1 | . . . 1 . . Known Exits Taken . | . . . . . . Unknown Exits Taken 5 | 1 1 1 1 1 . Scrap Searched 3 | . . . . 2 1 Spaces Dug . | . . . . . . Terrain Destroyed 4 | . . . . . 4 Melee . | . . . . . . Projectile . | . . . . . . AOE 4 | . . . . . 4 Terrain Rammed . | . . . . . . Walls Destroyed . | . . . . . . Machines Disabled . | . . . . . . Actions | -11 -10 -9 -9 -7 -6 --------- Run | Yrd Mat Mat Min Zio Pro Total 1212 | 57 92 153 475 175 260 Wait 30 | . . 9 . 14 7 Move 1087 | 47 88 138 435 144 235 Hop 4 | . . . 3 . 1 Pick Up 18 | 5 1 1 7 3 1 Fast Attach . | . . . . . . Attach 19 | 5 1 1 4 3 5 Detach 1 | . . . . 1 . Swap 3 | . . . . 3 . Drop 4 | . 2 . 1 1 . Fire 46 | . . 4 25 6 11 Melee . | . . . . . . Ram . | . . . . . . Kick . | . . . . . . Crush . | . . . . . . Escape Stasis . | . . . . . . Rewire . | . . . . . . Trap . | . . . . . . Miscellaneous . | . . . . . . Route ------- -11/Scrapyard -10/Materials -9/Materials -9/Mines (discovered 2 exits: [*Mat] / [*Zio]) -7/Zion -6/Proximity Caves History --------- Turn | Location | Event 9 | -11/Scrapyard | Discovered new exit (range 16) 56 | -11/Scrapyard | Entered Materials 120 | -10/Materials | Discovered new exit (range 3) 121 | -10/Materials | Entered another Materials area 121 | -9/Materials | Evolved 2 slots: Propulsion x1, Utility x1 220 | -9/Materials | Discovered new exit (range 6) 223 | -9/Materials | Entered Mines 309 | -9/Mines | Build established: Mutant 353 | -9/Mines | Lost 3 parts (1p2n) 399 | -9/Mines | Joined a pair of Derelicts in attacking an 0b10 outpost 435 | -9/Mines | Learned location of Recycling (-8) 514 | -9/Mines | Discovered new exit (range 11) 518 | -9/Mines | A Derelict revealed a hidden shortcut to a safe place 520 | -9/Mines | Entered Zion 538 | -7/Zion | Given the Hacking Drone Bay 543 | -7/Zion | Found Prototype Device 547 | -7/Zion | Identified Hacking Drone Bay 624 | -7/Zion | Discovered new exit (range 12) 629 | -7/Zion | Entered Proximity Caves 651 | -6/Proximity Caves | Core integrity fell below 50% 669 | -6/Proximity Caves | Core integrity fell below 20% 704 | -6/Proximity Caves | Lost 7 parts (1n2u4w) 806 | -6/Proximity Caves | Spotted B-75 Beast 812 | -6/Proximity Caves | Lost 3 parts (1p1u1w) 818 | -6/Proximity Caves | Destroyed by S-27 Virus with Autogun Last Messages --------------- 00674_ Chain reaction triggered in Lgt. Nuclear Core. 00674_ S-27 Virus destroyed. 00682_ Acquired 6 matter. 00686_ VTOL Module fries itself beyond repair. 00686_ Corrupted Autogun fries itself beyond repair. 00687_ Acquired 23 matter. 00690_ Autogun fries itself beyond repair. 00690_ Acquired VTOL Module. 00692_ Corrupted Lgt. Nuclear Core fries itself beyond repair. 00759_ C-30 ARC bursts open, deploying its payload. 00759_ L-41 Fighter unfolds itself. 00759_ G-50 Soldier unfolds itself. 00760_ Heat Sink destroyed. 00763_ Lgt. Ion Engine destroyed. 00770_ Searching scrap... 00770_ Found Imp. Weapon Shielding. 00770_ Found Authchip [Storage]. 00770_ Found 22 Matter. 00771_ Acquired 22 matter. 00781_ Lightning Gun destroyed. Map ----- +----------------------------------------------------+ | ?????????????????????????????????????????????????? | | ?????????????????????????????????????????????????? | | ?????????????????????????????????????????????????? | | ?????????????????????????????????????????????????? | | ?????????????????????????????????????????????????? | | ?????????????????????????????????????????????????? | | ????????????????????????????????????????????? ???? | | ??????????????????????????????????????????? #? | | ??????????????????????????????????????????? #? | | ??????????????????????????????????????????? ## | | ??????????????????????????????????????????? # | | ?????????????????????????????????????????? ? | | ?????????????????????????????????????????? ? | | ?????????????????????????????????????????? ?? | | ?????????????????????????????????????????? ??? | | ?????????????????????????????????????????? ???? | | ?????????????????????????????????????????? ????? | | ?????????????????????????????????????????? #????? | | ???????????????????####?????????????????## #????? | | ???????????????????# #????????????????# ?????? | | ????????#######????# ##??????????????# #??????? | | ????????#"""" #?????# ##??#####??????# #??????? | | ????????#"" "#?????# #?## ##?????# #??????? | | ????????#"! ""#?????# ### ##????# #??????? | | ????????##" !##????## s## ###### #??????? | | ????????##" ##????# @s #??????? | | ????????#" ""####### ss gb g #??????? | | ????????# #### ##### ### ######## | | ????????## #??######???## ## | | ?????????#### ## #????????????## ###### #### | | ????????????# #### #?????????????# #????# ##?? | | ????????????# #??# #????????????? #????# ##? | | ????????????# #??# #???????????? ##?##?# #? | | ???????????## ##?# #??????????? ###??# ## #? | | ???????????# ### #?????????? ?????# ## | | ???????????# ## #????????? #?????## # | | ???????????# ## #???????? ???????##### # | | ???????????# ## #??????? ## ???????????# # | | ??????????## ### #?????????# ???##?????## # | | ?#???????## ## #?????????# ? ## ???# # | | ## ###### ## ##????????# ? ??# | | # ## #???###### ## | | ?# ## #??## ## | | ######## ### ##?# ??# | | #????## #?# #?# ??# | | #?????## ### ### ?# ### | | ##?????# #? ??# #???## | | ##????## #?# #???## ??????#### | | #?????## "#?# ####????????????### | | #??????## "%### #??????????????# | +----------------------------------------------------+ Best States ------------- Heat Dissipation 48 Energy Generation 10 Energy Capacity 125 Matter Stores 300 Matter Capacity 300 Sight Range 16 Terrain Scan Density 10 Evasion (%) 63 Offensive Hacking 11 Item Schematics ----------------- Imp. Trap Scanner | -7/Zion | Archive Mak. Flight Unit | -7/Zion | Archive Adv. Cooling System | -7/Zion | Archive Recoil Nullifier | -7/Zion | Archive Transmission Jammer | -7/Zion | Archive Lgt. Fission Core | -7/Zion | Archive Mak. Power Source | -7/Zion | Archive Imp. Reaction Control System | -7/Zion | Archive Hvy. Battle Rifle | -7/Zion | Archive Matter Compressor | -7/Zion | Archive Microactuators | -7/Zion | Archive Mak. Shrapnel Gun | -7/Zion | Archive Hyp. Gauss Rifle | -7/Zion | Archive Phase Shifter | -7/Zion | Archive Mak. Light Armor Plating | -7/Zion | Archive Robot Schematics ------------------ Y-54 Guardian | -7/Zion | Archive K-01 Serf | -7/Zion | Archive A-02 Transporter | -7/Zion | Archive D-83 Annihilator | -7/Zion | Archive Fabricated ------------ Nothing Alien Tech Used ----------------- None Achievements -------------- None Challenges ------------ None Game ------ Seed CooledPulseDrive Manual? 0 Play Time 00:12:16 Cumulative 8.7 hours Start 2024.04.04 @ 04:23:56 End 2024.04.04 @ 04:33:58 Sessions 1 Manual Loads 0 Difficulty Rogue Special Mode None Game No. 17 Rogue 12 Adventurer 0 Explorer 5 Win Type - Total 0 Types 0/0/0/0/0/0/0/0/0 Lore% 7 Gallery% 21 Achievement% 18 Wizard Run 0 Options --------- Layout 0 ASCII 0 Keyboard 0 Movement Mouse Keybinds 0 Fullscreen 1 Font 12/Smallcaps Map View 83x54 Zoom Use 0% Tactical HUD 1 Map Filters NONE Filters NONE Steam 1 RUN: 9436808c-d57b-420f-913f-99f9c9541448